bitfinex-derivatives/quotes_BTCF0:USTF0_20250805
["timestamp","ask_amount","ask_price","bid_price","bid_amount"]
[1754375144466,2.19078801,114550.0,114540.0,0.71164974]
[1754375144661,2.19078801,114550.0,114540.0,0.86828019]
[1754375146366,2.19078801,114550.0,114540.0,0.71164974]
[1754375149769,2.19078801,114550.0,114540.0,0.67823974]
[1754375150072,2.19078801,114550.0,114540.0,0.01846643]
[1754375150671,2.19078801,114550.0,114540.0,0.04224643]
[1754375151471,2.19078801,114550.0,114540.0,0.21686573]
[1754375152074,2.19078801,114550.0,114540.0,0.04224643]
[1754375152974,2.19078801,114550.0,114540.0,0.21686573]
[1754375153672,2.19078801,114550.0,114540.0,0.04224643]
[1754375153969,2.19078801,114550.0,114540.0,0.21686573]
[1754375154277,1.746014,114550.0,114540.0,0.21686573]
[1754375154473,2.19078801,114550.0,114540.0,0.64417331]
[1754375155476,2.19078801,114550.0,114540.0,0.1993993]
[1754375155676,2.19078801,114550.0,114540.0,0.64417331]
[1754375156076,2.19078801,114550.0,114540.0,0.1993993]
[1754375156375,2.19078801,114550.0,114540.0,0.35603055]
[1754375157780,2.19078801,114550.0,114540.0,0.18141125]
[1754375158180,2.19078801,114550.0,114540.0,0.35603045]
[1754375158679,2.19078801,114550.0,114540.0,0.18141125]
[1754375159081,2.19078801,114550.0,114540.0,0.35603045]
[1754375159582,2.19078801,114550.0,114540.0,0.1993992]
[1754375160383,2.19078801,114550.0,114540.0,0.35603045]
[1754375160984,2.19078801,114550.0,114540.0,0.37263045]
[1754375164684,2.19078801,114550.0,114540.0,0.2159992]
[1754375166688,2.19078801,114550.0,114540.0,0.1756192]
[1754375167179,2.19078801,114550.0,114540.0,0.1989992]
[1754375169092,2.19078801,114550.0,114540.0,0.02438]
[1754375169294,2.19078801,114550.0,114540.0,0.001]
[1754375170498,2.19078801,114550.0,114540.0,0.1756192]
[1754375171197,1.746014,114550.0,114540.0,0.64377321]
[1754375171399,2.19078801,114550.0,114540.0,0.64377321]
[1754375171698,2.19078801,114550.0,114540.0,0.001]
[1754375172597,2.19078801,114550.0,114540.0,0.15763125]
[1754375173698,2.63556202,114550.0,114540.0,0.15763125]
[1754375174096,2.19078801,114550.0,114540.0,0.15763125]
[1754375174396,2.19078801,114550.0,114540.0,0.001]
[1754375175494,1.746014,114550.0,114540.0,0.001]
[1754375175801,2.19078801,114550.0,114540.0,0.001]
[1754375180399,2.19078801,114550.0,114540.0,0.1756193]
[1754375181604,1.746014,114550.0,114540.0,0.1756193]
[1754375182204,2.19078801,114550.0,114540.0,0.1756193]
[1754375182997,2.19078801,114550.0,114540.0,0.33225055]
[1754375183908,2.19078801,114550.0,114540.0,0.1756193]
[1754375184405,2.19078801,114550.0,114540.0,0.001]
[1754375184703,2.19078801,114550.0,114540.0,0.1756192]
[1754375185005,1.746014,114550.0,114540.0,0.1756192]
[1754375185205,2.19078801,114550.0,114540.0,0.1756192]
[1754375185505,1.746014,114550.0,114540.0,0.1756192]
[1754375185706,2.19078801,114550.0,114540.0,0.1756192]
[1754375185910,1.746014,114550.0,114540.0,0.1756192]
[1754375186097,2.19078801,114550.0,114540.0,0.1756192]
[1754375187902,2.19078801,114550.0,114540.0,0.001]
[1754375188303,2.19078801,114550.0,114540.0,0.1756193]
[1754375189606,2.19078801,114550.0,114540.0,0.001]
[1754375194410,2.19078801,114550.0,114540.0,0.1756192]
[1754375195312,2.19078801,114550.0,114540.0,0.1988292]
[1754375196412,2.19078801,114550.0,114540.0,0.02421]
[1754375197512,2.19078801,114550.0,114540.0,0.001]
[1754375202418,1.746014,114550.0,114540.0,0.001]
[1754375202717,2.19078801,114550.0,114540.0,0.001]
[1754375205719,2.19078801,114550.0,114540.0,0.15763125]
[1754375206022,2.19078801,114550.0,114540.0,0.33225055]
[1754375206421,1.746014,114550.0,114540.0,0.80023456]
[1754375206720,2.19078801,114550.0,114540.0,0.81577456]
[1754375207829,1.746014,114550.0,114540.0,0.81577456]
[1754375208024,1.746014,114550.0,114540.0,0.89505456]
[1754375208522,2.19078801,114550.0,114540.0,0.89505456]
[1754375209025,2.19078801,114550.0,114540.0,0.73842331]
[1754375209419,1.746014,114550.0,114540.0,0.73842331]
[1754375209922,2.19078801,114550.0,114540.0,0.73842331]
[1754375210526,1.746014,114550.0,114540.0,0.73842331]
[1754375211024,2.19078801,114550.0,114540.0,0.73842331]
[1754375215723,1.746014,114550.0,114540.0,0.73842331]
[1754375215924,2.19078801,114550.0,114540.0,0.73842331]
[1754375219332,2.19078801,114550.0,114540.0,0.2143693]
[1754375219733,2.19078801,114550.0,114540.0,0.1988293]
[1754375220031,2.19078801,114550.0,114540.0,0.35546055]
[1754375221634,2.19078801,114550.0,114540.0,0.15763125]
[1754375222032,2.19078801,114550.0,114540.0,0.33225045]
[1754375225233,2.19078801,114550.0,114540.0,0.15763125]
[1754375225634,2.63556202,114550.0,114540.0,0.15763125]
[1754375225836,2.63556202,114550.0,114540.0,0.001]
[1754375226027,2.19078801,114550.0,114540.0,0.001]
[1754375226432,2.19078801,114550.0,114540.0,0.1756193]
[1754375226734,2.19078801,114550.0,114540.0,0.001]
[1754375228832,0.2359792,114540.0,114530.0,0.96185367]
[1754375229025,0.73833321,114540.0,114530.0,0.96185367]
[1754375229825,0.73833321,114540.0,114530.0,0.97573367]
[1754375231337,0.73833321,114540.0,114530.0,0.97673367]
[1754375232134,0.73833321,114540.0,114530.0,0.53195966]
[1754375232334,0.73833321,114540.0,114530.0,0.97673367]
[1754375234432,0.73833321,114540.0,114530.0,0.49746966]
[1754375234736,1.18310722,114540.0,114530.0,0.48358966]
[1754375234925,0.73833321,114540.0,114530.0,0.48358966]
[1754375235432,0.73833321,114540.0,114530.0,0.18682701]
[1754375235629,0.2935592,114540.0,114530.0,0.77466552]
[1754375235825,0.73833321,114540.0,114530.0,0.80623552]
[1754375236025,0.73833321,114540.0,114530.0,0.82011552]
[1754375239341,0.73833321,114540.0,114530.0,0.37534151]
[1754375241642,0.2935592,114540.0,114530.0,0.37534151]
[1754375241944,0.73833321,114540.0,114530.0,0.37534151]
[1754375243240,0.73833321,114540.0,114530.0,0.20070701]
[1754375243440,1.18310722,114540.0,114530.0,0.08029701]
[1754375243744,1.18310722,114540.0,114530.0,0.27926091]
[1754375244045,1.18310722,114540.0,114530.0,0.29540091]
[1754375244645,0.73833321,114540.0,114530.0,0.32989091]
[1754375245040,0.73833321,114540.0,114530.0,0.48652216]
[1754375246747,0.73833321,114540.0,114530.0,0.52244216]
[1754375249347,0.73833321,114540.0,114530.0,0.53197216]
[1754375252142,1.18310722,114540.0,114530.0,0.51844216]
[1754375252337,1.18310722,114540.0,114530.0,0.53195216]
[1754375253049,0.73833321,114540.0,114530.0,0.53195216]
[1754375253247,1.18310722,114540.0,114530.0,0.53195216]
[1754375253547,0.73833321,114540.0,114530.0,0.53195216]
[1754375254046,1.18310722,114540.0,114530.0,0.23692826]
[1754375254348,1.18310722,114540.0,114530.0,0.25985826]
[1754375254651,1.18310722,114540.0,114530.0,0.43449216]
[1754375254947,0.73833321,114540.0,114530.0,0.48457216]
[1754375255148,0.73833321,114540.0,114530.0,0.51728216]
[1754375255348,0.73833321,114540.0,114530.0,0.53079216]
[1754375257351,0.2935592,114540.0,114530.0,0.37416091]
[1754375257547,0.73833321,114540.0,114530.0,0.37416091]
[1754375257747,0.2935592,114540.0,114530.0,0.37416091]
[1754375257952,0.73833321,114540.0,114530.0,0.37416091]
[1754375258354,0.2935592,114540.0,114530.0,0.37416091]
[1754375258552,0.73833321,114540.0,114530.0,0.37416091]
[1754375258952,0.73833321,114540.0,114530.0,0.53081009]
[1754375262550,0.2935592,114540.0,114530.0,0.53081009]
[1754375262855,0.73833321,114540.0,114530.0,0.53081009]
[1754375264154,0.73833321,114540.0,114530.0,0.9755841]
[1754375265756,0.73833321,114540.0,114530.0,0.53081009]
[1754375266054,0.73833321,114540.0,114530.0,0.9755841]
[1754375267256,0.73833321,114540.0,114530.0,0.53081009]
[1754375267456,0.73833321,114540.0,114530.0,0.9755841]
[1754375269158,0.2935592,114540.0,114530.0,0.9755841]
[1754375269347,0.73833321,114540.0,114530.0,0.9755841]
[1754375272554,0.73833321,114540.0,114530.0,0.53081009]
[1754375272754,0.73833321,114540.0,114530.0,0.9755841]
[1754375275963,0.73833321,114540.0,114530.0,0.53081009]
[1754375281566,0.73833321,114540.0,114530.0,0.9755841]
[1754375288767,0.73833321,114540.0,114530.0,0.53081009]
[1754375289271,0.2935592,114540.0,114530.0,0.53081009]
[1754375289470,0.73833321,114540.0,114530.0,0.53081009]
[1754375290472,0.73833321,114540.0,114530.0,0.54837334]
[1754375291172,1.18310722,114540.0,114530.0,0.54837334]
[1754375292769,1.18310722,114540.0,114530.0,0.39172416]
[1754375297082,0.73833321,114540.0,114530.0,0.39172416]
[1754375299378,1.18310722,114540.0,114530.0,0.39172416]
[1754375300080,1.18310722,114540.0,114530.0,0.54837334]
[1754375306486,1.18310722,114540.0,114530.0,0.39172416]
[1754375309087,1.18310722,114540.0,114530.0,0.54837334]
[1754375315390,1.18310722,114540.0,114530.0,0.39172416]
[1754375321895,0.73833321,114540.0,114530.0,0.39172416]
[1754375322095,1.18310722,114540.0,114530.0,0.39172416]
[1754375323596,0.73833321,114540.0,114530.0,0.39172416]
[1754375324196,0.73833321,114540.0,114530.0,0.54837334]
[1754375325498,0.2935592,114540.0,114530.0,0.99314735]
[1754375325698,0.73833321,114540.0,114530.0,0.99314735]
[1754375327199,0.2935592,114540.0,114530.0,0.99314735]
[1754375327399,0.73833321,114540.0,114530.0,0.99314735]
[1754375329200,0.71392321,114540.0,114530.0,0.99314735]
[1754375329795,0.71392321,114540.0,114530.0,0.83649817]
[1754375332001,0.2211192,114540.0,114530.0,0.83649817]
[1754375332196,0.1746192,114540.0,114530.0,0.83649817]
[1754375332696,0.61939321,114540.0,114530.0,0.83649817]
[1754375333902,0.65253321,114540.0,114530.0,0.83649817]
[1754375334107,0.2168192,114540.0,114530.0,0.83649817]
[1754375334399,0.66159321,114540.0,114530.0,0.83649817]
[1754375335092,0.67589321,114540.0,114530.0,0.83649817]
[1754375335490,0.67589321,114540.0,114530.0,0.9461628]
[1754375336199,0.69798321,114540.0,114530.0,0.9461628]
[1754375338401,0.71386321,114540.0,114530.0,0.9461628]
[1754375339103,0.73702321,114540.0,114530.0,0.50138879]
[1754375339305,0.73702321,114540.0,114530.0,0.9461628]
[1754375339905,0.73702321,114540.0,114530.0,0.50138879]
[1754375340602,1.18179722,114540.0,114530.0,0.50138879]
[1754375341206,0.73702321,114540.0,114530.0,0.50138879]
[1754375341906,0.73702321,114540.0,114530.0,0.39172416]
[1754375345006,1.18179722,114540.0,114530.0,0.39172416]
[1754375345307,0.71386321,114540.0,114530.0,0.83649817]
[1754375346115,0.73830321,114540.0,114530.0,0.83649817]
[1754375348413,0.2935292,114540.0,114530.0,0.83649817]
[1754375348606,0.73830321,114540.0,114530.0,0.83649817]
[1754375348910,0.73830321,114540.0,114530.0,0.39172416]
[1754375349110,0.73830321,114540.0,114530.0,0.83649817]
[1754375350716,0.73830321,114540.0,114530.0,0.39172416]
[1754375352513,1.18307722,114540.0,114530.0,0.37821416]
[1754375352714,1.18307722,114540.0,114530.0,0.13717026]
[1754375353214,1.18307722,114540.0,114530.0,0.34379436]
[1754375353718,1.18307722,114540.0,114530.0,0.49951721]
[1754375360230,0.2935292,114540.0,114530.0,0.49951721]
[1754375360432,1.18307722,114540.0,114530.0,0.49951721]
[1754375360731,0.73830321,114540.0,114530.0,0.49951721]
[1754375361331,0.73830321,114540.0,114530.0,0.38985436]
[1754375361532,0.73830321,114540.0,114530.0,0.54650354]
[1754375362333,1.18307722,114540.0,114530.0,0.54650354]
[1754375362533,0.73830321,114540.0,114530.0,0.54650354]
[1754375362733,0.2935292,114540.0,114530.0,0.54650354]
[1754375363136,0.73830321,114540.0,114530.0,0.54650354]
[1754375363434,0.73830321,114540.0,114530.0,0.99127755]
[1754375363738,0.73830321,114540.0,114530.0,0.54650354]
[1754375363936,0.73830321,114540.0,114530.0,0.99127755]
[1754375364332,0.2935292,114540.0,114530.0,0.99127755]
[1754375364529,0.73830321,114540.0,114530.0,0.54650354]
[1754375364731,0.73830321,114540.0,114530.0,0.99127755]
[1754375365636,0.73830321,114540.0,114530.0,0.38985436]
[1754375367138,0.73830321,114540.0,114530.0,0.54650354]
[1754375367839,0.73830321,114540.0,114530.0,0.99127755]
[1754375370539,0.73830321,114540.0,114530.0,0.54650354]
[1754375370841,0.73830321,114540.0,114530.0,1.10091129]
[1754375371241,0.73830321,114540.0,114530.0,0.94426211]
[1754375371540,0.73830321,114540.0,114530.0,0.83462837]
[1754375371939,0.73830321,114540.0,114530.0,0.99127755]
[1754375372144,0.73830321,114540.0,114530.0,0.54650354]
[1754375373541,0.73830321,114540.0,114530.0,0.38985436]
[1754375374944,0.2935292,114540.0,114530.0,0.38985436]
[1754375375146,0.73830321,114540.0,114530.0,0.38985436]
[1754375376147,0.73830321,114540.0,114530.0,0.33300436]
[1754375376347,0.73830321,114540.0,114530.0,0.37552436]
[1754375376542,0.73830321,114540.0,114530.0,0.38957436]
[1754375381552,1.18307722,114540.0,114530.0,0.38957436]
[1754375382155,0.73830321,114540.0,114530.0,0.38957436]
[1754375383151,0.73830321,114540.0,114530.0,0.4992088]
[1754375386554,0.73830321,114540.0,114530.0,0.38957436]
[1754375387249,0.73830321,114540.0,114530.0,0.54622354]
[1754375393065,0.66642321,114540.0,114530.0,0.54622354]
[1754375393263,0.73951321,114540.0,114530.0,0.54622354]
[1754375398167,0.73951321,114540.0,114530.0,0.99099755]
[1754375400468,0.73951321,114540.0,114530.0,0.54622354]
[1754375400768,0.73951321,114540.0,114530.0,0.99099755]
[1754375407672,0.73951321,114540.0,114530.0,0.54622354]
[1754375407872,0.73951321,114540.0,114530.0,0.99099755]
[1754375408069,0.73951321,114540.0,114530.0,0.54622354]
[1754375408973,0.2947392,114540.0,114530.0,0.54622354]
[1754375409172,0.73951321,114540.0,114530.0,0.54622354]
[1754375411173,0.2947392,114540.0,114530.0,0.54622354]
[1754375411376,0.73951321,114540.0,114530.0,0.54622354]
[1754375412576,0.73951321,114540.0,114530.0,0.52866029]
[1754375412766,0.2947392,114540.0,114530.0,0.52866029]
[1754375412972,0.73951321,114540.0,114530.0,0.52866029]
[1754375413176,0.73951321,114540.0,114530.0,0.37201111]
[1754375418077,0.73951321,114540.0,114530.0,0.29424111]
[1754375418278,0.73951321,114540.0,114530.0,0.32638111]
[1754375418478,0.73951321,114540.0,114530.0,0.37164111]
[1754375419779,0.73951321,114540.0,114530.0,0.32638111]
[1754375419975,1.18428722,114540.0,114530.0,0.32638111]
[1754375420282,1.18428722,114540.0,114530.0,0.48303029]
[1754375420578,1.18428722,114540.0,114530.0,0.52829029]
[1754375420978,0.73951321,114540.0,114530.0,0.52829029]
[1754375423183,1.18428722,114540.0,114530.0,0.52829029]
[1754375425182,0.73951321,114540.0,114530.0,0.52829029]
[1754375426181,1.18428722,114540.0,114530.0,0.52829029]
[1754375428581,1.18428722,114540.0,114530.0,0.48201029]
[1754375429180,1.18428722,114540.0,114530.0,0.51415029]
[1754375429682,1.18428722,114540.0,114530.0,0.52829029]
[1754375438989,1.18428722,114540.0,114530.0,0.08029701]
[1754375452699,1.18428722,114540.0,114530.0,0.23694619]
[1754375454300,1.18428722,114540.0,114530.0,0.26171619]
[1754375457105,1.18428722,114540.0,114530.0,0.43635029]
[1754375457803,1.18428722,114540.0,114530.0,0.48659029]
[1754375458803,1.18428722,114540.0,114530.0,0.31195619]
[1754375459398,1.18428722,114540.0,114530.0,0.27789619]
[1754375461706,1.18428722,114540.0,114530.0,0.45253029]
[1754375462302,1.18428722,114540.0,114530.0,0.29588111]
[1754375463803,1.18428722,114540.0,114530.0,0.27789619]
[1754375465603,1.18428722,114540.0,114530.0,0.12124701]
[1754375466006,1.18428722,114540.0,114530.0,0.29588111]
[1754375467199,1.18428722,114540.0,114530.0,0.32799111]
[1754375468898,1.18428722,114540.0,114530.0,0.15335701]
[1754375469099,1.18428722,114540.0,114530.0,0.12124701]
[1754375471805,1.18428722,114540.0,114530.0,0.08029701]
[1754375472403,1.18428722,114540.0,114530.0,0.10507701]
[1754375472603,1.18428722,114540.0,114530.0,0.26172619]
[1754375474201,1.18428722,114540.0,114530.0,0.23694619]
[1754375476403,1.18428722,114540.0,114530.0,0.33787525]
[1754375476603,1.18428722,114540.0,114530.0,0.18122607]
[1754375477005,0.222883,114520.0,114510.0,0.40374892]
[1754375477309,1.17198102,114520.0,114510.0,0.19941209]
[1754375477602,0.72720701,114520.0,114510.0,0.04276291]
[1754375478004,1.42148102,114520.0,114510.0,0.09009291]
[1754375478206,1.42148102,114520.0,114510.0,0.05798291]
[1754375478401,0.97670701,114520.0,114510.0,0.05798291]
[1754375478605,0.97670701,114520.0,114510.0,0.06098291]
[1754375479107,0.97670701,114520.0,114510.0,0.09609291]
[1754375479809,0.97670701,114520.0,114510.0,0.08683225]
[1754375480909,0.97670701,114520.0,114510.0,0.15696421]
[1754375485014,0.97670701,114520.0,114510.0,0.12485421]
[1754375485606,1.42148102,114520.0,114510.0,0.08485421]
[1754375485812,1.42148102,114520.0,114510.0,0.10963421]
[1754375486114,0.97670701,114520.0,114510.0,0.10963421]
[1754375487714,0.97670701,114520.0,114510.0,0.12485421]
[1754375491416,0.97670701,114520.0,114510.0,0.10963421]
[1754375492312,0.1746996,114490.0,114480.0,0.37166281]
[1754375492513,0.71465361,114490.0,114480.0,0.48996141]
[1754375492718,0.71465361,114490.0,114480.0,0.33331223]
[1754375492918,0.71465361,114490.0,114480.0,0.51320224]
[1754375493613,0.71465361,114490.0,114480.0,0.37032686]
[1754375494014,0.71465361,114490.0,114480.0,0.44177296]
[1754375494917,0.72442361,114490.0,114480.0,0.44777296]
[1754375495523,0.71465361,114490.0,114480.0,0.32300436]
[1754375495722,0.72442361,114490.0,114480.0,0.40409436]
[1754375496323,0.72442361,114490.0,114480.0,0.22938376]
[1754375497221,1.15942762,114490.0,114480.0,0.10887376]
[1754375497515,0.72442361,114490.0,114480.0,0.13233376]
[1754375497818,0.72442361,114490.0,114480.0,0.11446073]
[1754375498017,1.16919762,114490.0,114480.0,0.10846073]
[1754375498219,1.16919762,114490.0,114480.0,0.11046073]
[1754375498721,1.16919762,114490.0,114480.0,0.10546073]
[1754375498924,1.16919762,114490.0,114480.0,0.10746073]
[1754375500023,1.16919762,114490.0,114480.0,0.10646073]
[1754375501124,1.16919762,114490.0,114480.0,0.10446073]
[1754375503125,0.72442361,114490.0,114480.0,0.10446073]
[1754375505923,1.16919762,114490.0,114480.0,0.10446073]
[1754375507225,0.72442361,114490.0,114480.0,0.10446073]
[1754375509024,0.72442361,114490.0,114480.0,0.08100073]
[1754375509629,1.16919762,114490.0,114480.0,0.10446073]
[1754375509928,0.72442361,114490.0,114480.0,0.10446073]
[1754375512724,1.16919762,114490.0,114480.0,0.10446073]
[1754375516028,0.72442361,114490.0,114480.0,0.10446073]
[1754375517334,1.16919762,114490.0,114480.0,0.10446073]
[1754375517529,1.16919762,114490.0,114480.0,0.0724461]
[1754375518635,1.16919762,114490.0,114480.0,0.08123685]
[1754375518934,1.66919762,114490.0,114480.0,0.08123685]
[1754375519733,1.66919762,114490.0,114480.0,0.10469685]
[1754375520033,1.67119762,114490.0,114480.0,0.10369685]
[1754375520733,1.21965361,114490.0,114480.0,0.20074685]
[1754375520933,1.22942361,114490.0,114480.0,0.20074685]
[1754375521134,1.47892361,114490.0,114480.0,0.20074685]
[1754375521535,1.92369762,114490.0,114480.0,0.18648685]
[1754375521729,1.92069762,114490.0,114480.0,0.10369685]
[1754375522034,1.92269762,114490.0,114480.0,0.10369685]
[1754375523026,1.92069762,114490.0,114480.0,0.10369685]
[1754375523231,1.92169762,114490.0,114480.0,0.10369685]
[1754375523737,1.91969762,114490.0,114480.0,0.10369685]
[1754375523937,1.92169762,114490.0,114480.0,0.11948685]
[1754375524141,1.92369762,114490.0,114480.0,0.18319685]
[1754375527744,1.92369762,114490.0,114480.0,0.15069685]
[1754375528041,1.92369762,114490.0,114480.0,0.10369685]
[1754375530640,1.92369762,114490.0,114480.0,0.08023685]
[1754375530840,0.2766849,114480.0,114470.0,1.82518]
[1754375531040,1.16623292,114480.0,114470.0,1.85768]
[1754375531240,1.16623292,114480.0,114470.0,1.94178075]
[1754375531440,1.16623292,114480.0,114470.0,1.95062094]
[1754375532242,1.16823292,114480.0,114470.0,1.95062094]
[1754375533138,1.15846292,114480.0,114470.0,1.95062094]
[1754375533340,0.2689149,114480.0,114470.0,2.12535104]
[1754375533537,1.15846292,114480.0,114470.0,2.12535104]
[1754375533738,1.15946292,114480.0,114470.0,2.12535104]
[1754375534044,1.15946292,114480.0,114470.0,1.95062094]
[1754375538245,1.16923292,114480.0,114470.0,1.95062094]
[1754375539848,1.16923292,114480.0,114470.0,0.75873094]
[1754375540045,1.16923292,114480.0,114470.0,0.78994094]
[1754375545953,1.16923292,114480.0,114470.0,0.74357094]
[1754375546355,1.16923292,114480.0,114470.0,0.77607094]
[1754375547852,1.16923292,114480.0,114470.0,0.78994094]
[1754375548456,1.16923292,114480.0,114470.0,0.74357094]
[1754375548758,1.16923292,114480.0,114470.0,0.78994094]
[1754375549960,0.2796849,114480.0,114470.0,0.78994094]
[1754375550157,1.16923292,114480.0,114470.0,0.78994094]
[1754375552365,1.16923292,114480.0,114470.0,0.19650094]
[1754375552869,1.16923292,114480.0,114470.0,0.10313094]
[1754375553365,1.16923292,114480.0,114470.0,0.11836094]
[1754375555264,1.16923292,114480.0,114470.0,0.15119094]
[1754375555958,1.16923292,114480.0,114470.0,0.10313094]
[1754375556164,1.16923292,114480.0,114470.0,0.07907094]
[1754375556367,1.30027622,114480.0,114470.0,0.02334]
[1754375556563,0.4107282,114480.0,114470.0,0.02334]
[1754375556762,1.30027622,114480.0,114470.0,0.03857]
[1754375557268,1.30027622,114480.0,114470.0,0.08002648]
[1754375557766,1.30027622,114480.0,114470.0,0.03196648]
[1754375557767,1.54977622,114480.0,114470.0,0.03196648]
[1754375560870,1.54977622,114480.0,114470.0,0.10075668]
[1754375566776,1.54977622,114480.0,114470.0,0.0921302]
[1754375567479,1.54977622,114480.0,114470.0,0.0687902]
[1754375567776,1.54977622,114480.0,114460.0,0.17977001]
[1754375567777,0.2206102,114470.0,114460.0,0.03857]
[1754375567976,0.72382421,114470.0,114460.0,0.03857]
[1754375569173,0.72482421,114470.0,114460.0,0.03857]
[1754375569680,0.72482421,114470.0,114460.0,0.11196844]
[1754375569879,0.72482421,114470.0,114460.0,0.10325]
[1754375570078,0.72482421,114470.0,114450.0,0.1896706]
[1754375570079,0.1747607,114450.0,114440.0,0.37079175]
[1754375570282,1.12226872,114450.0,114440.0,0.40276052]
[1754375570775,1.12226872,114450.0,114440.0,0.42610052]
[1754375571975,0.71408471,114450.0,114440.0,0.41023027]
[1754375572477,0.2693107,114450.0,114440.0,0.41223027]
[1754375572673,0.71408471,114450.0,114440.0,0.41223027]
[1754375572984,0.71408471,114450.0,114440.0,0.42110624]
[1754375579788,1.15885872,114450.0,114440.0,0.42110624]
[1754375580687,0.2693107,114450.0,114440.0,0.42110624]
[1754375580889,0.71408471,114450.0,114440.0,0.42110624]
[1754375584389,1.15885872,114450.0,114440.0,0.42110624]
[1754375584894,1.16862872,114450.0,114440.0,0.42110624]
[1754375585394,1.16862872,114450.0,114440.0,0.57753625]
[1754375587991,1.16862872,114450.0,114440.0,0.53384415]
[1754375588197,1.16862872,114450.0,114440.0,0.53385755]
[1754375588696,1.16862872,114450.0,114440.0,0.37742754]
[1754375588997,1.16862872,114450.0,114440.0,0.32968754]
[1754375589298,1.16862872,114450.0,114440.0,0.36190754]
[1754375589693,1.16862872,114450.0,114440.0,0.18713134]
[1754375589896,1.16862872,114450.0,114440.0,0.15491134]
[1754375590998,1.16862872,114450.0,114440.0,0.32968744]
[1754375591298,1.16862872,114450.0,114440.0,0.15491134]
[1754375593500,1.16862872,114450.0,114440.0,0.10783134]
[1754375594797,1.16862872,114450.0,114440.0,0.08449134]
[1754375595200,1.41812872,114450.0,114440.0,0.08449134]
[1754375595400,1.41812872,114450.0,114440.0,0.10797134]
[1754375595907,1.41812872,114450.0,114440.0,0.08449134]
[1754375596597,1.41812872,114450.0,114440.0,0.10797134]
[1754375600799,0.5285807,114450.0,114440.0,0.07561537]
[1754375600994,1.41812872,114450.0,114440.0,0.07561537]
[1754375605712,1.41812872,114450.0,114440.0,0.09909537]
[1754375606107,0.5285807,114450.0,114440.0,0.09909537]
[1754375606307,1.41812872,114450.0,114440.0,0.09909537]
[1754375607326,1.41812872,114450.0,114440.0,0.07561537]
[1754375607617,1.41812872,114450.0,114440.0,0.19263537]
[1754375607818,0.5285807,114450.0,114440.0,0.19263537]
[1754375608118,1.41812872,114450.0,114440.0,0.17803537]
[1754375608618,1.41812872,114450.0,114440.0,0.14581537]
[1754375609121,0.5285807,114450.0,114440.0,0.14581537]
[1754375609418,1.40835872,114450.0,114440.0,0.35281147]
[1754375609619,1.40835872,114450.0,114440.0,0.19263537]
[1754375609922,1.40835872,114450.0,114440.0,0.36741147]
[1754375610623,0.5188107,114450.0,114440.0,0.36741147]
[1754375610922,1.40835872,114450.0,114440.0,0.36741147]
[1754375612826,0.4701407,114450.0,114440.0,0.81218548]
[1754375613025,0.86903471,114450.0,114440.0,0.81218548]
[1754375613217,0.2495,114450.0,114440.0,0.81218548]
[1754375613422,0.4242607,114450.0,114440.0,0.81218548]
[1754375613823,0.2495,114450.0,114440.0,0.81218548]
[1754375614317,0.75059911,114460.0,114450.0,0.2795307]
[1754375614516,0.75059911,114460.0,114450.0,0.2931007]
[1754375614726,0.70179046,114460.0,114450.0,0.2931007]
[1754375615025,0.95129046,114460.0,114450.0,0.2931007]
[1754375615226,0.98534046,114460.0,114450.0,0.2931007]
[1754375615428,0.5893751,114460.0,114450.0,0.2941007]
[1754375615727,0.5991251,114460.0,114450.0,0.2941007]
[1754375615916,0.6130351,114460.0,114450.0,0.2941007]
[1754375616120,0.5116354,114460.0,114450.0,0.2941007]
[1754375617128,0.5456854,114460.0,114450.0,0.2941007]
[1754375617423,0.5554354,114460.0,114450.0,0.2941007]
[1754375617630,0.95140076,114460.0,114450.0,0.2941007]
[1754375617929,0.71581076,114460.0,114450.0,0.2941007]
[1754375618628,0.73732076,114460.0,114450.0,0.2941007]
[1754375620121,0.75295076,114460.0,114450.0,0.2941007]
[1754375621430,0.3569854,114460.0,114450.0,0.2941007]
[1754375621629,0.75295076,114460.0,114450.0,0.2941007]
[1754375624228,0.3569854,114460.0,114450.0,0.2941007]
[1754375624630,0.75295076,114460.0,114450.0,0.2941007]
[1754375624931,0.3274454,114460.0,114450.0,0.2941007]
[1754375625132,0.3413554,114460.0,114450.0,0.2941007]
[1754375625732,0.75295076,114460.0,114450.0,0.2941007]
[1754375628134,0.3569854,114460.0,114450.0,0.2941007]
[1754375628324,0.75295076,114460.0,114450.0,0.2941007]
[1754375636643,0.80245506,114460.0,114450.0,0.2941007]
[1754375637441,0.81222506,114460.0,114450.0,0.2941007]
[1754375639138,0.80245506,114460.0,114450.0,0.1989307]
[1754375639336,0.81222506,114460.0,114450.0,0.1989307]
[1754375639536,0.81222506,114460.0,114450.0,0.2142207]
[1754375639830,0.81222506,114460.0,114450.0,0.2941007]
[1754375640341,0.81222506,114460.0,114450.0,0.2931007]
[1754375641345,0.81322506,114460.0,114450.0,0.2931007]
[1754375641740,0.81322506,114460.0,114450.0,0.44953071]
[1754375643846,0.81322506,114460.0,114450.0,0.89500037]
[1754375646745,0.81322506,114460.0,114450.0,0.44953071]
[1754375656245,0.81322506,114460.0,114450.0,0.2931007]
[1754375659748,0.81322506,114460.0,114450.0,0.1979307]
[1754375659749,1.25869472,114460.0,114450.0,0.1979307]
[1754375660051,1.25869472,114460.0,114450.0,0.1979301]
[1754375660253,0.81322506,114460.0,114450.0,0.1979301]
[1754375660752,0.81322506,114460.0,114450.0,0.02317]
[1754375661452,0.81322506,114460.0,114450.0,0.18029446]
[1754375661653,0.81322506,114460.0,114450.0,0.35505466]
[1754375664556,0.3677554,114460.0,114450.0,0.35505466]
[1754375664755,0.81322506,114460.0,114450.0,0.45262466]
[1754375667058,0.81322506,114460.0,114450.0,0.2955002]
[1754375667655,0.3677554,114460.0,114450.0,0.2955002]
[1754375667953,0.81322506,114460.0,114450.0,0.2955002]
[1754375670261,0.3677554,114460.0,114450.0,0.2955002]
[1754375670461,0.81322506,114460.0,114450.0,0.2955002]
[1754375677368,0.81322506,114460.0,114450.0,0.45262466]
[1754375678169,0.3677554,114460.0,114450.0,0.45262466]
[1754375678375,0.81322506,114460.0,114450.0,0.45262466]
[1754375683878,0.81322506,114460.0,114450.0,0.2955002]
[1754375689080,0.81322506,114460.0,114450.0,0.2810102]
[1754375691578,0.81322506,114460.0,114450.0,0.07146]
[1754375692086,0.81322506,114460.0,114450.0,0.2462201]
[1754375692776,1.25869472,114460.0,114450.0,0.03924]
[1754375693181,0.81322506,114460.0,114450.0,0.2140002]
[1754375697282,1.25869472,114460.0,114450.0,0.02317]
[1754375697484,0.2775202,114450.0,114440.0,0.241335]
[1754375697684,1.16845952,114450.0,114440.0,0.241335]
[1754375698481,1.16845952,114450.0,114440.0,0.1976443]
[1754375698785,1.16845952,114450.0,114440.0,0.1986443]
[1754375700084,1.16945952,114450.0,114440.0,0.1986443]
[1754375700383,1.16945952,114450.0,114440.0,0.1976443]
[1754375706690,1.16945952,114450.0,114440.0,0.2132843]
[1754375707393,1.16945952,114450.0,114440.0,0.2480743]
[1754375710896,1.16945952,114450.0,114440.0,0.2930943]